bitfinex-derivatives/quotes_BTCF0:USTF0_20251229
["timestamp","ask_amount","ask_price","bid_price","bid_amount"]
[1766969191881,0.0113464,88204.0,88203.0,0.057]
[1766969192090,0.00017006,88212.0,88197.0,9e-08]
[1766969192284,0.00017006,88212.0,88198.0,0.11116]
[1766969192481,0.00017006,88212.0,88199.0,0.057]
[1766969193088,0.0113465,88203.0,88198.0,0.057]
[1766969193395,0.00013079,88202.0,88194.0,1e-07]
[1766969193583,0.00013079,88202.0,88195.0,0.15344]
[1766969193987,0.0113468,88201.0,88194.0,1e-07]
[1766969194286,0.0113468,88201.0,88194.0,0.0192801]
[1766969194492,0.00013079,88202.0,88194.0,0.0192801]
[1766969195892,0.01147739,88202.0,88194.0,0.0192801]
[1766969196484,0.1077845,88219.0,88194.0,0.0192801]
[1766969196685,0.0113447,88217.0,88194.0,0.0306277]
[1766969196887,0.011345,88215.0,88194.0,0.0306277]
[1766969197087,0.0253185,88214.0,88194.0,0.0306277]
[1766969197297,0.011345,88215.0,88194.0,0.0306277]
[1766969197495,0.00017006,88213.0,88194.0,0.0306277]
[1766969197996,0.0113453,88212.0,88194.0,0.0192801]
[1766969198700,0.0113458,88209.0,88194.0,0.0192801]
[1766969199083,0.0113461,88206.0,88195.0,0.057]
[1766969199284,0.0113461,88206.0,88194.0,0.0570001]
[1766969200690,0.00017006,88213.0,88194.0,1e-07]
[1766969200893,0.02515862,88212.0,88194.0,1e-07]
[1766969201193,0.0113463,88205.0,88194.0,1e-07]
[1766969201399,0.0113458,88209.0,88194.0,1e-07]
[1766969201901,0.0113462,88206.0,88194.0,1e-07]
[1766969207302,0.00017006,88213.0,88194.0,1e-07]
[1766969207601,0.0113455,88211.0,88194.0,1e-07]
[1766969208810,0.00017006,88213.0,88194.0,1e-07]
[1766969209194,0.0251456,88212.0,88194.0,1e-07]
[1766969209400,0.00017006,88213.0,88194.0,1e-07]
[1766969209697,0.0251456,88212.0,88194.0,1e-07]
[1766969209897,0.00017006,88213.0,88194.0,1e-07]
[1766969210100,0.0251456,88212.0,88194.0,1e-07]
[1766969210306,0.00017006,88213.0,88194.0,0.0113477]
[1766969210523,0.11472565,88230.0,88194.0,0.0113477]
[1766969210524,0.08152136,88235.0,88200.0,0.1019596]
[1766969210700,0.0113439,88223.0,88201.0,0.15344]
[1766969211009,0.1133039,88220.0,88201.0,0.15344]
[1766969211610,0.0113446,88218.0,88202.0,0.00017006]
[1766969211906,0.00017006,88219.0,88202.0,0.00017006]
[1766969212506,0.01151446,88219.0,88202.0,0.00017006]
[1766969213209,0.01151446,88219.0,88202.0,0.05717006]
[1766969216107,0.0113451,88215.0,88202.0,0.05717006]
[1766969216910,0.0113451,88215.0,88202.0,0.00017006]
[1766969217111,0.01151456,88219.0,88203.0,0.057]
[1766969219815,0.00017006,88219.0,88203.0,0.057]
[1766969220710,0.09644,88225.0,88203.0,0.057]
[1766969221118,0.0113431,88230.0,88203.0,0.057]
[1766969221409,0.0113433,88228.0,88208.0,0.0113458]
[1766969221809,0.00017006,88227.0,88208.0,0.0113458]
[1766969222208,0.0113436,88226.0,88204.0,0.0113463]
[1766969222413,0.00017006,88227.0,88203.0,0.057]
[1766969222610,0.02509193,88226.0,88203.0,0.057]
[1766969222807,0.00017006,88227.0,88194.0,1e-07]
[1766969222808,0.0113463,88205.0,88194.0,1e-07]
[1766969223007,0.02509675,88204.0,88187.0,0.057]
[1766969223215,0.02509737,88203.0,88187.0,0.057]
[1766969223405,0.0113467,88202.0,88187.0,0.057]
[1766969223610,0.0113468,88201.0,88187.0,0.057]
[1766969224419,0.0113472,88198.0,88187.0,0.057]
[1766969228416,0.00017006,88203.0,88187.0,0.057]
[1766969228612,0.0113442,88221.0,88190.0,0.1146991]
[1766969228915,0.02491555,88220.0,88190.0,0.1446991]
[1766969229217,0.02491555,88219.0,88190.0,0.1446991]
[1766969229416,0.02491555,88218.0,88192.0,0.0113479]
[1766969229614,0.00017006,88214.0,88190.0,0.1146991]
[1766969229813,0.02491555,88213.0,88190.0,0.1146991]
[1766969230014,0.02491555,88212.0,88190.0,0.1146991]
[1766969230210,0.00017006,88214.0,88198.0,0.011347]
[1766969230421,0.0113443,88220.0,88199.0,0.0683469]
[1766969230722,0.09644,88228.0,88201.0,0.0113466]
[1766969230922,0.02606261,88227.0,88201.0,0.0113466]
[1766969231322,0.09644,88228.0,88201.0,0.0113466]
[1766969231523,0.02606261,88227.0,88206.0,0.00017006]
[1766969231719,0.0113437,88225.0,88206.0,0.00017006]
[1766969231925,0.0109477,88262.0,88216.0,0.0113448]
[1766969232121,0.0109477,88262.0,88225.0,0.00017006]
[1766969232122,0.0113416,88242.0,88225.0,0.00017006]
[1766969232620,0.09644,88250.0,88225.0,0.00017006]
[1766969232621,0.02606261,88241.0,88226.0,0.057]
[1766969233121,0.09644,88250.0,88226.0,0.057]
[1766969233122,0.0113414,88243.0,88226.0,0.057]
[1766969233322,0.09644,88250.0,88226.0,0.057]
[1766969233323,0.011342,88239.0,88226.0,0.057]
[1766969233628,0.2111391,88250.0,88226.0,0.057]
[1766969233822,0.02606261,88238.0,88226.0,0.057]
[1766969234120,0.2111391,88250.0,88226.0,0.057]
[1766969234314,0.02606261,88237.0,88226.0,0.057]
[1766969234718,0.2111391,88250.0,88226.0,0.057]
[1766969235023,0.02606261,88249.0,88225.0,0.00017006]
[1766969235224,0.02606261,88249.0,88232.0,0.0113427]
[1766969235423,0.09644,88260.0,88231.0,0.01232]
[1766969235724,0.09644,88259.0,88242.0,0.0113414]
[1766969236024,0.09644,88259.0,88232.0,0.04248875]
[1766969236522,0.09644,88262.0,88232.0,0.04248875]
[1766969236726,0.09644,88262.0,88244.0,0.0113412]
[1766969237122,0.09660983,88262.0,88244.0,0.00924416]
[1766969237513,0.00016983,88262.0,88248.0,0.0113407]
[1766969237724,0.0113375,88273.0,88250.0,0.1146991]
[1766969237924,0.09644,88273.0,88251.0,0.0683803]
[1766969238123,0.0113377,88272.0,88251.0,0.05704]
[1766969239030,0.0113376,88273.0,88251.0,0.05704]
[1766969239231,0.107777,88277.0,88252.0,0.0113402]
[1766969239420,0.00022655,88282.0,88263.0,0.0113387]
[1766969239726,0.00022655,88282.0,88264.0,0.00016996]
[1766969242922,0.32102643,88326.0,88283.0,0.0113362]
[1766969242923,0.0130259,88308.0,88283.0,0.0113362]
[1766969243122,0.0130259,88308.0,88265.0,0.20972492]
[1766969243123,0.15348,88311.0,88287.0,0.00016996]
[1766969243328,0.09644,88310.0,88287.0,0.00016996]
[1766969243925,0.0113341,88300.0,88287.0,0.00016996]
[1766969244436,0.09644,88310.0,88287.0,0.00016996]
[1766969244437,0.0113346,88296.0,88287.0,6e-08]
[1766969247228,0.0113344,88298.0,88260.0,0.1146991]
[1766969247430,0.0113354,88289.0,88267.0,0.15344]
[1766969247633,0.05704,88297.0,88275.0,0.0113372]
[1766969247834,0.0001699,88300.0,88275.0,0.03]
[1766969248049,0.0113295,88336.0,88275.0,0.03]
[1766969248050,0.0113316,88320.0,88297.0,0.0113343]
[1766969248241,0.0964,88321.0,88299.0,0.1146991]
[1766969248546,0.0964,88321.0,88293.0,0.1534]
[1766969249046,0.0113319,88317.0,88298.0,0.00016985]
[1766969250559,0.0113321,88315.0,88298.0,0.00016985]
[1766969251756,0.0113338,88302.0,88270.0,0.1146991]
[1766969252059,0.0113338,88302.0,88279.0,0.0113367]
[1766969252260,0.0113333,88306.0,88279.0,0.0113367]
[1766969252554,0.0113337,88303.0,88279.0,0.0113367]
[1766969252758,0.00016956,88300.0,88282.0,0.00016985]
[1766969252948,0.00016956,88300.0,88283.0,0.1534]
[1766969253548,0.00016956,88300.0,88282.0,0.00016985]
[1766969254248,0.0113313,88322.0,88295.0,0.0113346]
[1766969254448,0.0113313,88322.0,88283.0,0.11326118]
[1766969254449,0.0964,88321.0,88297.0,0.0113344]
[1766969254654,0.0964,88321.0,88296.0,0.1534]
[1766969254655,0.09636,88330.0,88298.0,0.09636]
[1766969255054,0.09636,88330.0,88310.0,0.0113327]
[1766969255258,0.09636,88330.0,88309.0,0.00016985]
[1766969255659,0.09636,88330.0,88309.0,0.01150265]
[1766969256252,0.01155713,88326.0,88309.0,0.00016985]
[1766969256453,0.0113311,88323.0,88309.0,0.09652985]
[1766969257058,0.0113311,88323.0,88309.0,0.00016985]
[1766969257248,0.00022643,88326.0,88309.0,0.00016985]
[1766969257755,0.00022643,88326.0,88296.0,0.0113345]
[1766969258059,0.00022643,88326.0,88298.0,0.0113343]
[1766969258060,0.0113316,88319.0,88298.0,0.0113343]
[1766969258250,0.00022643,88326.0,88299.0,0.15336]
[1766969258559,0.00022643,88326.0,88310.0,0.0113327]
[1766969258760,0.00022643,88326.0,88309.0,0.00016985]
[1766969258951,0.0113309,88325.0,88309.0,0.00016985]
[1766969259146,0.00022643,88326.0,88309.0,0.00016985]
[1766969259556,0.01155713,88326.0,88309.0,0.00016985]
[1766969261161,0.0113311,88323.0,88309.0,0.00016985]
[1766969261662,0.00022643,88326.0,88309.0,0.00016985]
[1766969262758,0.0113308,88325.0,88309.0,0.00016985]
[1766969263464,0.00022643,88326.0,88309.0,0.00016985]
[1766969263761,0.00022643,88326.0,88305.0,0.09636]
[1766969263962,0.00022643,88326.0,88306.0,0.15332]
[1766969264662,0.00022643,88326.0,88312.0,0.0113325]
[1766969264863,0.00022643,88326.0,88307.0,0.00016985]
[1766969265259,0.00016985,88327.0,88316.0,0.011332]
[1766969265467,5e-08,88327.0,88307.0,0.00016985]
[1766969265662,5e-08,88327.0,88321.0,0.0113313]
[1766969265863,5e-08,88327.0,88324.0,0.0113308]
[1766969267965,5e-08,88327.0,88307.0,0.00016985]
[1766969268170,5e-08,88327.0,88308.0,0.15332]
[1766969268362,5e-08,88327.0,88316.0,0.0113319]
[1766969268964,5e-08,88327.0,88309.0,0.1486524]
[1766969269267,5e-08,88327.0,88315.0,0.0113321]
[1766969269766,5e-08,88327.0,88307.0,0.00016985]
[1766969269767,5e-08,88327.0,88307.0,0.01150285]
[1766969269974,5e-08,88327.0,88309.0,0.0113328]
[1766969270359,5e-08,88327.0,88312.0,0.0113325]
[1766969272671,5e-08,88327.0,88313.0,0.15328]
[1766969273773,5e-08,88327.0,88314.0,0.0113322]
[1766969273971,5e-08,88327.0,88313.0,0.15328]
[1766969274468,5e-08,88327.0,88325.0,0.0113308]
[1766969274670,5e-08,88327.0,88313.0,0.15328]
[1766969274872,5e-08,88327.0,88324.0,0.0113309]
[1766969275063,5e-08,88327.0,88324.0,0.0682909]
[1766969278068,0.00226392,88343.0,88324.0,0.05696]
[1766969278272,0.00226392,88343.0,88331.0,0.0113299]
[1766969278474,0.00226392,88343.0,88323.0,0.09632]
[1766969278475,0.00226392,88343.0,88333.0,0.0113298]
[1766969279577,0.00226392,88343.0,88332.0,0.05696]
[1766969280073,0.00016985,88347.0,88332.0,0.05696]
[1766969280271,0.00016985,88347.0,88336.0,0.0113293]
[1766969280671,0.00016985,88347.0,88339.0,0.011329]
[1766969281079,0.0682457,88366.0,88333.0,0.09632]
[1766969281376,0.0113259,88364.0,88342.0,0.0113286]
[1766969281570,0.02465958,88363.0,88342.0,0.0113286]
[1766969281762,0.02465958,88363.0,88333.0,0.09632]
[1766969281763,0.02465958,88363.0,88346.0,0.0113281]
[1766969281973,0.12097958,88362.0,88349.0,0.0113277]
[1766969282273,0.02465958,88361.0,88347.0,0.00016985]
[1766969282572,0.02465958,88360.0,88348.0,0.0113278]
[1766969282772,0.02465958,88359.0,88348.0,0.0113278]
[1766969283071,0.02465958,88358.0,88347.0,0.00016985]
[1766969283276,0.02465958,88357.0,88347.0,0.00016985]
[1766969283461,0.02465958,88356.0,88347.0,0.00016985]
[1766969283666,0.02465958,88355.0,88347.0,0.00016985]
[1766969283868,0.02465958,88354.0,88347.0,0.00016985]
[1766969284070,0.02465958,88353.0,88347.0,0.00016985]
[1766969284269,0.02465958,88352.0,88347.0,0.00016985]
[1766969284474,0.02465958,88351.0,88347.0,0.00016985]
[1766969284677,0.02465958,88350.0,88347.0,0.00016985]
[1766969284974,0.02466206,88349.0,88336.0,0.0682493]
[1766969285173,0.0113262,88362.0,88337.0,0.09632]
[1766969285373,0.02465871,88361.0,88337.0,0.09632]
[1766969285575,0.02465871,88360.0,88337.0,0.09632]
[1766969285774,0.00016985,88357.0,88340.0,0.00016985]
[1766969285980,0.02465871,88356.0,88340.0,0.00016985]
[1766969286684,0.03598561,88356.0,88340.0,0.00016985]
[1766969286867,0.02465871,88355.0,88340.0,0.00016985]
[1766969287071,0.02465871,88354.0,88340.0,0.05692]
[1766969287270,0.02465871,88353.0,88340.0,0.05692]
[1766969287466,0.02465871,88352.0,88340.0,0.05692]
[1766969287779,0.02465871,88351.0,88340.0,0.05692]
[1766969287971,0.0113269,88356.0,88340.0,0.05692]
[1766969288171,0.0113276,88351.0,88325.0,0.0113307]
[1766969288368,0.011328,88348.0,88326.0,0.09632]
[1766969288572,0.02442422,88347.0,88327.0,0.09632]
[1766969289071,0.0130159,88365.0,88327.0,0.09632]
[1766969289287,0.14069601,88408.0,88327.0,0.09632]
[1766969289288,0.0113241,88378.0,88337.0,0.00016985]
[1766969289476,0.0113241,88378.0,88351.0,0.0113274]
[1766969289780,0.09632,88381.0,88356.0,0.0113268]
[1766969289984,0.09632,88381.0,88359.0,0.0113264]
[1766969290180,0.09632,88381.0,88359.0,0.1076464]
[1766969290381,0.00016976,88379.0,88361.0,0.00016976]
[1766969290774,0.00016976,88379.0,88362.0,0.00557]
[1766969291882,0.0113222,88393.0,88366.0,0.0113255]
[1766969292082,0.0113222,88393.0,88367.0,0.057]
[1766969292279,0.0113226,88390.0,88367.0,0.057]
[1766969292586,0.0113229,88387.0,88362.0,0.016896]
[1766969292880,0.00016961,88383.0,88363.0,0.15332]
[1766969293274,0.00016961,88383.0,88364.0,0.15332]
[1766969295082,0.00016961,88383.0,88362.0,0.00557]
[1766969295480,0.0113236,88382.0,88362.0,0.00557]
[1766969295681,0.00016961,88383.0,88362.0,0.00557]
[1766969295874,0.00016961,88383.0,88363.0,0.0113259]
[1766969297583,0.00016961,88383.0,88366.0,0.0113255]
[1766969297888,0.00016961,88383.0,88362.0,0.0168961]
[1766969298484,0.00016961,88383.0,88365.0,0.0113256]
[1766969298692,0.00016961,88383.0,88370.0,0.011325]
[1766969298877,0.00016961,88383.0,88366.0,0.0113256]
[1766969299789,0.00016961,88383.0,88362.0,0.016896]
[1766969299978,0.0113237,88381.0,88362.0,0.00557]
[1766969300184,0.00016961,88383.0,88362.0,0.00557]
[1766969300989,0.0113235,88382.0,88362.0,0.00557]
[1766969302588,0.00016961,88383.0,88362.0,0.00557]
[1766969303085,0.00016961,88383.0,88367.0,0.0113253]
[1766969303678,0.00016961,88383.0,88362.0,0.016896]
[1766969303995,0.01149311,88383.0,88362.0,0.00557]
[1766969304795,0.0113239,88379.0,88362.0,0.00557]
[1766969306183,0.0113239,88379.0,88361.0,0.00016976]
[1766969307796,0.00016961,88383.0,88361.0,0.00016976]
[1766969307797,0.0113248,88373.0,88361.0,0.00016976]
[1766969309288,0.0113251,88370.0,88352.0,0.05696]
[1766969309691,0.0113251,88370.0,88349.0,0.0682876]
[1766969310288,0.0113251,88370.0,88351.0,0.01149726]
[1766969310695,0.0113257,88366.0,88351.0,0.00016976]
[1766969311194,0.0113257,88366.0,88350.0,0.00557]
[1766969311391,0.0113263,88361.0,88343.0,0.00226392]
[1766969311589,0.09628,88365.0,88343.0,0.00226392]
[1766969311804,0.24072,88398.0,88344.0,0.0113284]
[1766969311990,0.17757158,88394.0,88366.0,0.0113254]
[1766969312186,0.00016976,88389.0,88371.0,0.00016976]
[1766969312388,0.03565438,88388.0,88371.0,0.00016976]
[1766969312587,0.17757158,88387.0,88371.0,0.00016976]
[1766969312792,0.03565458,88386.0,88371.0,0.00016976]
[1766969313091,0.02433158,88385.0,88371.0,0.00016976]
[1766969313290,0.02433285,88384.0,88371.0,0.00016976]
[1766969313590,0.011323,88386.0,88371.0,0.00016976]
[1766969313787,0.0113233,88384.0,88371.0,0.00016976]
[1766969313987,0.0113233,88384.0,88364.0,0.0113257]
[1766969314494,0.0113233,88384.0,88365.0,0.01770629]
[1766969314686,0.0113233,88384.0,88366.0,0.01770629]
[1766969314886,0.0113233,88384.0,88367.0,0.01770629]
[1766969315089,0.0113241,88378.0,88368.0,0.00270629]
[1766969315394,0.0113241,88378.0,88366.0,0.00016976]
[1766969315785,0.0113241,88378.0,88356.0,0.0113267]
[1766969315983,0.05696,88377.0,88352.0,0.0113273]
[1766969316189,0.09628,88376.0,88353.0,0.09628]
[1766969316390,0.0113251,88370.0,88348.0,0.0113278]
[1766969316796,0.0113255,88367.0,88350.0,0.00016976]
[1766969317197,0.0113259,88364.0,88340.0,0.0113288]
[1766969317400,0.0113259,88364.0,88344.0,0.09628]
[1766969317601,0.0113263,88361.0,88344.0,0.09628]
[1766969317905,0.0113274,88352.0,88333.0,0.09628]
[1766969318094,0.0113269,88356.0,88333.0,0.09628]
[1766969318295,0.00016976,88353.0,88336.0,0.00011329]
[1766969318602,0.01149706,88353.0,88336.0,0.00011329]
[1766969320404,0.0113276,88350.0,88336.0,0.00011329]
[1766969321702,0.00016976,88353.0,88336.0,0.00011329]
[1766969322704,0.01149706,88353.0,88336.0,0.00011329]
[1766969324202,0.0113277,88350.0,88336.0,0.00011329]
[1766969324405,0.0113277,88350.0,88330.0,0.0113301]
[1766969324602,0.0113277,88350.0,88330.0,0.1076101]
[1766969325606,0.00016976,88353.0,88333.0,0.0113298]
[1766969325809,0.02424518,88352.0,88333.0,0.0113298]
[1766969326000,0.00016976,88353.0,88333.0,0.0113298]
[1766969326201,0.02424518,88352.0,88333.0,0.0113298]
[1766969326505,0.00016976,88353.0,88336.0,0.0113294]
[1766969326691,0.02424182,88352.0,88336.0,0.0113294]
[1766969326899,0.02424182,88351.0,88336.0,0.0113294]
[1766969327211,0.09628,88375.0,88361.0,0.0113262]
[1766969327506,0.24076,88395.0,88343.0,0.0113285]
[1766969327507,0.05696,88378.0,88363.0,0.0113259]
[1766969327696,0.15324,88377.0,88363.0,0.0113259]
[1766969328906,0.15324,88377.0,88362.0,0.0113261]
[1766969331012,0.15324,88377.0,88361.0,0.01149586]
[1766969331203,0.15324,88377.0,88361.0,0.00016976]
[1766969331996,0.15324,88377.0,88347.0,0.01301323]
[1766969331997,0.0113262,88361.0,88338.0,0.0113291]
[1766969332200,0.0113213,88400.0,88340.0,0.11428024]
[1766969332409,0.11428024,88390.0,88348.0,0.0113278]
[1766969332702,0.0113247,88373.0,88349.0,0.01758532]
[1766969332903,0.15324,88372.0,88350.0,0.01758532]
[1766969333207,0.00016976,88370.0,88351.0,0.01758532]
[1766969333511,0.00016976,88370.0,88352.0,0.01758532]
[1766969333711,0.00016976,88370.0,88348.0,0.0113278]
[1766969333712,0.01301323,88369.0,88353.0,0.01758467]
[1766969333908,0.01301323,88369.0,88348.0,0.0113278]
[1766969334114,0.00016976,88370.0,88349.0,0.01758458]
[1766969334324,0.00016976,88370.0,88350.0,0.01758458]
[1766969334503,0.0113253,88369.0,88351.0,0.01758458]
[1766969334703,0.0113253,88369.0,88352.0,0.01758458]
[1766969334904,0.01301323,88368.0,88353.0,0.01758458]
[1766969335115,0.02433863,88368.0,88354.0,0.01758458]
[1766969335311,0.0113254,88368.0,88344.0,0.0113283]
[1766969335511,0.01301323,88367.0,88345.0,0.01758785]
[1766969335706,0.01301323,88367.0,88346.0,0.01758785]
[1766969335907,0.01301323,88367.0,88347.0,0.01758785]
[1766969336210,0.0113254,88368.0,88348.0,0.01758785]
[1766969336517,0.0113257,88365.0,88349.0,0.01758785]
[1766969336708,0.0113257,88365.0,88350.0,0.01758785]
[1766969337013,0.0113257,88365.0,88351.0,0.01758785]
[1766969337200,0.0113257,88365.0,88352.0,0.01759159]
[1766969337404,0.01301323,88364.0,88345.0,0.09628]
[1766969337608,0.01301323,88364.0,88346.0,0.01759158]
[1766969337806,0.011326,88363.0,88347.0,0.01759158]
[1766969338007,0.01301323,88369.0,88348.0,0.01759158]
[1766969338208,0.11445,88370.0,88339.0,0.0682889]
[1766969338414,0.0113265,88359.0,88340.0,0.09628]
[1766969338811,0.05696,88361.0,88341.0,0.0113287]
[1766969339318,0.01301323,88360.0,88336.0,0.0113294]
[1766969339616,0.0113267,88357.0,88336.0,0.0113294]
[1766969339812,0.0682863,88361.0,88339.0,0.011329]
[1766969340414,0.05696,88361.0,88341.0,0.0113286]
[1766969340616,0.01301323,88360.0,88344.0,0.0113283]
[1766969340813,0.05696,88368.0,88349.0,0.0113277]
[1766969341014,0.02414198,88367.0,88345.0,0.0113282]
[1766969341313,0.01301323,88367.0,88345.0,0.0113282]
[1766969341510,0.0682853,88368.0,88345.0,0.0113282]
[1766969341710,0.01301323,88366.0,88345.0,0.0113282]
[1766969341912,0.0113257,88365.0,88341.0,0.0113287]
[1766969342111,0.02433893,88365.0,88341.0,0.0113287]
[1766969342418,0.00016976,88370.0,88334.0,0.09628]
[1766969342419,0.01301323,88364.0,88352.0,0.0113273]
[1766969342613,0.00016976,88370.0,88352.0,0.0113273]
[1766969343811,0.00016976,88370.0,88349.0,0.09628]
[1766969344611,0.00016976,88370.0,88351.0,0.0113275]
[1766969344808,0.00016976,88370.0,88349.0,0.09628]
[1766969345414,0.0113252,88369.0,88349.0,0.09628]
[1766969345816,0.0113252,88369.0,88343.0,0.0113284]
[1766969346020,0.0113256,88366.0,88344.0,0.15324]
[1766969346215,0.0113256,88366.0,88343.0,0.0113284]
[1766969346422,0.011326,88363.0,88344.0,0.15324]
[1766969346819,0.0113256,88367.0,88345.0,0.0113282]
[1766969347417,0.00016976,88370.0,88344.0,0.15324]
[1766969347617,0.00016976,88370.0,88353.0,0.0113271]
[1766969347819,0.00016976,88370.0,88349.0,0.0113277]
[1766969348126,0.0113256,88366.0,88347.0,0.011328]
[1766969348322,0.01149496,88370.0,88347.0,0.011328]
[1766969348522,0.0113255,88367.0,88347.0,0.011328]
[1766969349624,0.0113261,88363.0,88346.0,0.15324]
[1766969349813,0.011326,88363.0,88342.0,0.0113286]
[1766969350014,0.011326,88363.0,88343.0,0.05696]
[1766969350631,0.011326,88363.0,88344.0,0.0113283]
[1766969350832,0.0113264,88360.0,88340.0,0.0113288]
[1766969351031,0.0113264,88360.0,88341.0,0.05696]
[1766969351331,0.0113259,88364.0,88342.0,0.0113286]
[1766969351631,0.0113263,88361.0,88342.0,0.0113286]
[1766969353330,0.15324,88365.0,88341.0,0.05696]
[1766969353533,0.0241237,88364.0,88341.0,0.05696]
[1766969353718,0.15324,88365.0,88341.0,0.05696]
[1766969353924,0.02412368,88364.0,88341.0,0.05696]
[1766969354126,0.0113265,88359.0,88341.0,0.05696]
[1766969354624,0.0113265,88359.0,88339.0,0.15324]
[1766969357332,0.0113265,88359.0,88340.0,0.0113289]
[1766969358041,0.15324,88365.0,88344.0,0.0113283]
[1766969358231,0.02413341,88364.0,88344.0,0.0113283]
[1766969358432,0.0113261,88362.0,88340.0,0.0113288]
[1766969358732,0.02413341,88361.0,88340.0,0.0113288]
[1766969358930,0.00016976,88370.0,88340.0,0.11428024]
[1766969359131,0.05696,88369.0,88349.0,0.0113276]
[1766969359442,0.05696,88369.0,88351.0,0.0113274]
[1766969360036,0.05696,88369.0,88354.0,0.0113271]
[1766969360841,0.05696,88369.0,88350.0,0.0113275]
[1766969361634,0.00016976,88370.0,88353.0,0.0113271]
[1766969361940,0.00016976,88370.0,88349.0,0.0113276]
[1766969362829,0.01149486,88370.0,88349.0,0.0113276]
[1766969364434,0.11309668,88370.0,88350.0,0.10160182]
[1766969365328,0.01149486,88370.0,88350.0,0.10160182]
[1766969365528,0.11309668,88370.0,88349.0,0.0113276]
[1766969365724,0.11309678,88370.0,88347.0,0.1645679]
[1766969366437,0.01149496,88370.0,88347.0,0.1645679]
[1766969367838,0.0113256,88367.0,88347.0,0.1645679]
[1766969368034,0.05696,88366.0,88347.0,0.1645679]
[1766969368234,0.05696,88366.0,88349.0,0.0113276]
[1766969369831,0.05696,88366.0,88345.0,0.0113282]
[1766969370031,0.05696,88366.0,88345.0,0.0682482]
[1766969371040,0.02404157,88365.0,88345.0,0.0682482]
[1766969371239,0.05696,88366.0,88345.0,0.0682482]
[1766969371439,0.03536763,88365.0,88345.0,0.0682482]
[1766969371638,0.0113261,88362.0,88341.0,0.0113286]
[1766969371845,0.0113265,88360.0,88342.0,0.1532]
[1766969372041,0.0113265,88360.0,88338.0,0.05692]
[1766969372239,0.02404262,88359.0,88340.0,0.0113289]
[1766969372441,0.02404262,88358.0,88340.0,0.0113289]
[1766969372633,0.02404262,88357.0,88340.0,0.0113289]
[1766969372829,0.02404262,88356.0,88340.0,0.0113289]
[1766969373039,0.02404262,88355.0,88338.0,0.05692]
[1766969373343,0.02404262,88354.0,88338.0,0.05692]
[1766969373643,0.02404262,88353.0,88338.0,0.05692]
[1766969373942,0.02404262,88352.0,88338.0,0.05692]
[1766969374239,0.0113276,88350.0,88332.0,0.0113299]
[1766969374539,0.0113279,88348.0,88332.0,0.05692]
[1766969374742,0.02404262,88347.0,88332.0,0.05692]
[1766969374928,0.02404262,88346.0,88332.0,0.05692]
[1766969375136,0.02404262,88345.0,88334.0,0.0113295]
[1766969375342,0.02404262,88344.0,88334.0,0.0113295]
[1766969375533,0.02404262,88343.0,88334.0,0.0113295]
[1766969375736,0.00016976,88350.0,88334.0,0.0113295]
[1766969377338,0.00016976,88350.0,88332.0,0.05692]
[1766969377533,0.00016976,88350.0,88333.0,0.0113298]
[1766969377944,0.00016976,88350.0,88335.0,0.0113294]
[1766969378535,0.00016976,88350.0,88336.0,0.0113293]
[1766969381939,0.00016976,88350.0,88333.0,0.0113298]
[1766969382144,0.0113265,88360.0,88338.0,0.0113291]
[1766969382449,0.09628,88359.0,88338.0,0.0113291]
[1766969382945,0.09628,88359.0,88340.0,0.0113288]
[1766969383248,0.00016976,88358.0,88341.0,0.00016976]
[1766969384050,0.0113271,88355.0,88341.0,0.00016976]
[1766969384353,0.0113235,88383.0,88341.0,0.00016976]
[1766969384549,0.09632,88382.0,88366.0,0.0113254]
[1766969384753,0.09632,88389.0,88364.0,0.05692]
[1766969384954,0.09632,88389.0,88364.0,0.05696]
[1766969385255,0.0113233,88384.0,88364.0,0.05696]
[1766969385454,0.00016976,88385.0,88368.0,0.00016976]
[1766969385651,0.01149296,88385.0,88368.0,0.00016976]
[1766969385855,0.00016976,88385.0,88368.0,0.00016976]
[1766969386152,0.0113237,88381.0,88368.0,0.00016976]
[1766969386352,0.01149296,88385.0,88368.0,0.00016976]
[1766969387153,0.01149296,88385.0,88359.0,0.0113264]
[1766969387154,0.00226315,88373.0,88359.0,0.0113264]
[1766969387354,0.00226315,88373.0,88360.0,0.05696]
[1766969387540,0.00226315,88373.0,88361.0,0.09628]
[1766969387741,0.00226315,88373.0,88357.0,0.09628]
[1766969387945,0.00226315,88373.0,88357.0,0.15324]
[1766969388547,0.00226315,88373.0,88361.0,0.0113261]
[1766969388954,0.09632,88389.0,88364.0,0.0113258]
[1766969389149,0.02385368,88388.0,88364.0,0.0113258]
[1766969389457,0.02385368,88387.0,88364.0,0.0113258]
[1766969389657,0.02385368,88386.0,88364.0,0.0113258]
[1766969389852,0.02385368,88385.0,88364.0,0.0113258]
[1766969390049,0.02402344,88384.0,88364.0,0.0113258]
[1766969390249,0.00016976,88384.0,88367.0,0.0113254]
[1766969390448,0.00016976,88384.0,88368.0,0.15324]
[1766969390652,0.00016976,88384.0,88369.0,0.0113251]
[1766969391756,0.00016976,88384.0,88368.0,0.15324]
[1766969391952,0.00016976,88384.0,88369.0,0.0113251]
[1766969392152,0.09628,88388.0,88369.0,0.0113251]
[1766969392351,0.02383637,88387.0,88369.0,0.0113251]
[1766969392551,0.02383637,88386.0,88369.0,0.0113251]
[1766969392854,0.0113212,88401.0,88368.0,0.15324]
[1766969393154,0.00016976,88393.0,88382.0,0.0113235]
[1766969393352,0.1076005,88406.0,88384.0,0.0113232]
[1766969393555,0.0113204,88407.0,88385.0,0.05696]
[1766969394158,0.0812694,88422.0,88385.0,0.05696]
[1766969394377,0.0113181,88425.0,88386.0,0.11313049]
[1766969394551,0.011319,88418.0,88391.0,0.0113223]
[1766969394860,0.011319,88418.0,88392.0,0.15324]
[1766969395058,0.09628,88417.0,88392.0,0.15324]
[1766969395261,0.0113174,88430.0,88393.0,0.05696]
[1766969395451,0.00016976,88420.0,88403.0,0.00016976]
[1766969395651,0.00016976,88420.0,88403.0,0.05712976]
[1766969395849,0.0113193,88416.0,88403.0,0.00016976]
[1766969396156,0.00016976,88420.0,88354.0,0.06080007]
[1766969396353,0.0113203,88408.0,88377.0,0.0113241]
[1766969396557,0.0113205,88406.0,88381.0,0.0113236]
[1766969396955,0.00016966,88402.0,88385.0,0.00016966]
[1766969397164,0.00016966,88402.0,88386.0,0.15324]
[1766969397355,0.00016966,88402.0,88387.0,0.05696]
[1766969397962,0.1075993,88415.0,88387.0,0.1645628]
[1766969398146,0.0113193,88415.0,88387.0,0.1645628]
[1766969398350,0.0113193,88415.0,88391.0,0.0113223]
[1766969398661,0.1075992,88416.0,88391.0,0.0113223]
[1766969398863,0.00016966,88412.0,88387.0,0.1645628]